bitfinex-derivatives/quotes_ETHF0:USTF0_20240901
["timestamp","ask_amount","ask_price","bid_price","bid_amount"]
[1725203538187,0.7479,2465.4,2465.1,3.1728]
[1725203539489,1.15353,2465.4,2465.1,2.81]
[1725203541479,0.40565,2465.3,2465.1,2.81]
[1725203541781,0.40566,2465.2,2464.9,6.0178]
[1725203542088,0.3677,2465.1,2464.9,6.0178]
[1725203542680,0.3677,2465.1,2464.9,6.42351]
[1725203543383,0.3677,2465.1,2464.9,6.0178]
[1725203543576,0.7761,2465.0,2464.9,6.0178]
[1725203543775,5.23859,2465.0,2464.9,3.2078]
[1725203544482,0.40574,2464.8,2464.6,5.32409372]
[1725203544683,4.8329,2465.0,2464.6,1.17609372]
[1725203544684,0.78794,2464.7,2464.6,1.17609372]
[1725203545279,0.78794,2464.7,2464.6,0.00609372]
[1725203545482,0.3822,2464.7,2464.6,1.17609372]
[1725203545982,0.78794,2464.7,2464.6,0.00609372]
[1725203546983,0.3822,2464.7,2464.6,0.00609372]
[1725203547291,0.78794,2464.7,2464.6,0.00609372]
[1725203547490,0.3822,2464.7,2464.6,0.00609372]
[1725203547680,0.78794,2464.7,2464.6,0.00609372]
[1725203547984,0.3822,2464.7,2464.6,0.00609372]
[1725203548693,0.78794,2464.7,2464.6,0.00609372]
[1725203548881,0.3822,2464.7,2464.6,0.00609372]
[1725203549189,0.40572,2464.9,2464.6,0.00609372]
[1725203549396,0.78132,2464.9,2464.6,0.00609372]
[1725203549888,0.7761,2465.0,2464.8,0.40572]
[1725203550287,0.7761,2465.0,2464.8,0.79632]
[1725203551393,0.7761,2465.0,2464.8,0.3906]
[1725203552195,2.77346403,2465.0,2464.7,2.8]
[1725203552695,2.36776403,2465.0,2464.7,2.8]
[1725203553388,2.36776403,2465.0,2464.7,3.20574]
[1725203554489,1.59166403,2465.2,2464.9,0.4057]
[1725203554794,1.59166403,2465.3,2464.9,3.2057]
[1725203554983,1.97006403,2465.3,2465.0,1.13269]
[1725203555585,1.97006403,2465.3,2465.1,0.40568]
[1725203556588,1.97006403,2465.3,2465.2,0.40566]
[1725203557193,1.59166403,2465.3,2465.2,0.40566]
[1725203557695,2.64688271,2465.6,2465.3,0.40565]
[1725203557696,1.59166403,2465.6,2465.3,0.40565]
[1725203558085,1.59166403,2465.6,2465.1,6.0078]
[1725203558086,2.34096403,2465.7,2465.4,0.40562]
[1725203558795,2.34096403,2465.7,2465.4,0.78192]
[1725203558983,2.34096403,2465.7,2465.4,1.15812]
[1725203560591,2.34096403,2465.7,2465.5,0.40561]
[1725203560805,2.34096403,2465.7,2465.4,1.15812]
[1725203561088,1.59166403,2465.7,2465.5,0.40561]
[1725203561595,1.59166403,2465.7,2465.4,0.7525]
[1725203561793,1.59166403,2465.7,2465.3,0.40564]
[1725203561794,1.59166403,2465.6,2465.3,0.40564]
[1725203561991,0.7231,2465.5,2465.3,0.40564]
[1725203562393,0.3757,2465.4,2465.3,0.40564]
[1725203562898,1.59166403,2465.6,2465.2,3.2078]
[1725203563392,1.59166403,2465.6,2465.5,0.40561]
[1725203564291,1.59166403,2465.6,2465.4,0.40562]
[1725203564492,1.59166403,2465.7,2465.4,0.40562]
[1725203564688,1.59166403,2465.7,2465.5,0.40561]
[1725203564899,1.57146403,2465.7,2465.5,0.40561]
[1725203565383,1.57146403,2465.7,2465.4,0.40562]
[1725203565793,1.57146403,2465.7,2465.5,0.40561]
[1725203565999,1.57146403,2465.7,2465.5,1.17]
[1725203566294,1.57146403,2465.7,2465.5,1.57561]
[1725203566495,1.57146403,2465.7,2465.5,1.93401]
[1725203567992,1.57146403,2465.7,2465.5,1.17]
[1725203568195,1.57146403,2465.7,2465.5,1.57561]
[1725203568393,1.57146403,2465.7,2465.6,0.4056]
[1725203568597,1.57146403,2465.7,2465.6,5.3439846]
[1725203568791,1.57146403,2465.7,2465.5,1.5756]
[1725203569191,1.95766403,2465.7,2465.5,1.5756]
[1725203570198,1.95766403,2465.7,2465.3,3.2078]
[1725203570403,0.79179,2465.7,2465.3,4.3778]
[1725203570700,2.90929617,2465.7,2465.3,4.3778]
[1725203570891,0.79179,2465.7,2465.3,4.78344]
[1725203571197,2.90929617,2465.7,2465.3,4.78344]
[1725203571392,0.79179,2465.7,2465.3,4.78344]
[1725203571595,0.79179,2465.7,2465.3,1.57564]
[1725203571912,0.79179,2465.7,2465.3,4.78344]
[1725203572099,0.79179,2465.7,2465.4,0.40563]
[1725203572100,0.3862,2465.7,2465.4,0.40563]
[1725203572401,0.3862,2465.7,2465.5,1.17]
[1725203575305,0.3862,2465.7,2465.3,3.2078]
[1725203575502,0.40561,2465.6,2465.3,3.2078]
[1725203575700,0.40561,2465.6,2465.4,1.17]
[1725203575898,2.50370617,2465.7,2465.4,1.57562]
[1725203576107,0.3862,2465.7,2465.4,1.57562]
[1725203576899,2.50370617,2465.7,2465.4,1.57562]
[1725203577401,0.3862,2465.7,2465.4,1.57562]
[1725203577606,0.4056,2465.6,2465.4,1.17]
[1725203577800,0.4056,2465.6,2465.0,5.096]
[1725203577801,0.40563,2465.4,2465.0,1.372]
[1725203578102,0.40568,2465.1,2465.0,1.372]
[1725203578495,4.46248,2465.1,2465.0,0.202]
[1725203581500,4.66319645,2465.1,2465.0,0.202]
[1725203582492,11.67739645,2465.1,2465.0,0.202]
[1725203582709,11.67739645,2465.1,2464.6,0.00609372]
[1725203582710,0.40574,2464.7,2464.6,0.00609372]
[1725203583097,4.46334,2464.7,2464.6,0.00609372]
[1725203583301,1.15954,2464.7,2464.6,0.00609372]
[1725203584502,5.21714,2464.7,2464.6,0.00609372]
[1725203589707,5.21714,2464.7,2464.0,0.1414]
[1725203589708,0.40583,2464.2,2464.0,0.1414]
[1725203589914,1.50524,2464.1,2464.0,0.1414]
[1725203590308,5.56364,2464.1,2464.0,0.1414]
[1725203591904,22.07928245,2464.1,2464.0,0.11513639]
[1725203592101,21.67344245,2464.1,2463.8,0.00609372]
[1725203592300,0.40588,2463.9,2463.8,0.00609372]
[1725203592505,1.42058,2463.9,2463.8,0.00609372]
[1725203592707,20.9458502,2463.9,2463.8,0.00609372]
[1725203593109,1.0148,2463.7,2463.1,3.2078]
[1725203593411,1.0148,2463.7,2462.7,6.0078]
[1725203593412,0.40602,2463.1,2462.7,6.0078]
[1725203593712,0.40602,2463.1,2462.5,4.9428]
[1725203593713,0.20501166,2463.3,2462.5,7.3255]
[1725203593909,0.366,2463.0,2462.5,7.3255]
[1725203594114,0.37209372,2463.0,2462.5,7.73769372]
[1725203594609,0.77812372,2463.0,2462.5,7.33159372]
[1725203594804,0.40606,2462.8,2462.5,0.00609372]
[1725203595204,4.42130436,2462.7,2462.5,0.00609372]
[1725203596807,0.3688,2462.9,2462.5,0.00609372]
[1725203597010,1.13152372,2463.0,2462.5,0.00609372]
[1725203597011,0.77812372,2463.0,2462.5,0.00609372]
[1725203597305,0.40604,2462.9,2462.5,0.00609372]
[1725203597714,0.77812372,2463.0,2462.5,0.00609372]
[1725203598720,0.40604,2462.9,2462.5,0.00609372]
[1725203598911,5.07543666,2462.9,2462.5,0.00609372]
[1725203599313,4.66939666,2462.9,2462.5,0.41219372]
[1725203599808,5.07543666,2462.9,2462.5,0.00609372]
[1725203602115,0.40606,2462.8,2462.5,0.00609372]
[1725203602307,0.40607,2462.7,2462.5,0.00609372]
[1725203602521,5.01338113,2462.7,2462.5,0.00609372]
[1725203602821,0.3593,2462.6,2462.5,0.00609372]
[1725203604223,0.76539,2462.6,2462.5,0.00609372]
[1725203604422,0.3593,2462.6,2462.5,0.00609372]
[1725203605222,0.37209372,2463.0,2462.6,0.40609]
[1725203605426,0.73289372,2463.0,2462.6,0.77609]
[1725203605622,1.13892372,2463.0,2462.5,0.41219372]
[1725203605827,4.26338081,2462.9,2462.6,0.40608]
[1725203606020,4.26338081,2462.9,2462.5,0.41219372]
[1725203606328,4.66942081,2462.9,2462.5,0.00609372]
[1725203606524,4.26338081,2462.9,2462.5,0.00609372]
[1725203606727,4.26338081,2462.9,2462.5,0.41219372]
[1725203607024,0.40606,2462.8,2462.5,0.00609372]
[1725203607415,0.3857,2462.7,2462.5,0.00609372]
[1725203607826,0.79177,2462.7,2462.5,0.00609372]
[1725203608128,0.3857,2462.7,2462.5,0.00609372]
[1725203609323,4.66943081,2462.9,2462.5,0.00609372]
[1725203609925,4.26338081,2462.9,2462.5,0.00609372]
[1725203610118,0.40607,2462.7,2462.5,0.00609372]
[1725203610426,5.43161505,2462.6,2462.5,0.00609372]
[1725203610630,5.80251505,2462.6,2462.5,0.00609372]
[1725203610927,5.21549,2462.6,2462.5,0.00609372]
[1725203611430,5.21549,2462.6,2461.8,6.3688]
[1725203611431,0.40617,2462.2,2461.6,0.40624]
[1725203611723,0.77708,2462.1,2461.6,9.39753567]
[1725203611931,0.3843,2462.0,2461.6,9.39753567]
[1725203612128,0.3843,2462.0,2461.6,8.99129567]
[1725203612523,0.59026406,2462.0,2461.6,8.99738939]
[1725203613224,0.59026406,2462.0,2461.6,9.40363939]
[1725203613823,0.3843,2462.0,2461.6,12.20363939]
[1725203614021,0.3843,2462.0,2461.7,0.40624]
[1725203614332,0.40621,2461.9,2461.6,8.61418939]
[1725203614627,0.40622,2461.8,2461.6,0.00609372]
[1725203615319,0.40624,2461.7,2461.6,0.00609372]
[1725203615523,0.40623,2461.8,2461.6,0.00609372]
[1725203615920,4.94596649,2461.7,2461.6,0.00609372]
[1725203616326,9.00836649,2461.7,2461.6,0.00609372]
[1725203616523,11.80836649,2461.7,2461.6,0.00609372]
[1725203616822,17.80836649,2461.7,2461.6,0.00609372]
[1725203621727,0.40634,2461.1,2460.6,3.2078]
[1725203621934,0.40638,2460.9,2460.6,3.2078]
[1725203622319,8.25260073,2461.0,2460.6,3.2078]
[1725203622320,0.40639,2460.8,2460.6,3.2078]
[1725203624027,4.46695447,2460.9,2460.6,3.2078]
[1725203624028,4.87333447,2460.9,2460.6,3.2078]
[1725203624447,0.00609372,2460.9,2460.6,3.2078]
[1725203624736,0.41246372,2460.9,2460.6,3.2078]
[1725203625430,0.41247372,2460.9,2460.6,3.2078]
[1725203625626,0.00609372,2460.9,2460.6,3.2078]
[1725203626627,0.00609372,2460.9,2460.6,3.61422]
[1725203626832,0.00609372,2460.9,2460.6,3.61421]
[1725203627139,0.00609372,2460.9,2460.6,3.2078]
[1725203627834,0.41247372,2460.9,2460.6,3.2078]
[1725203628033,0.4064,2460.8,2460.6,3.2078]
[1725203628222,0.20529462,2460.7,2460.6,3.2078]
[1725203629039,0.00609372,2460.9,2460.5,0.00609372]
[1725203629236,0.40642,2460.6,2460.5,0.00609372]
[1725203629540,0.20301876,2460.6,2460.5,0.00609372]
[1725203629838,7.554436,2460.8,2460.5,0.00609372]
[1725203630135,3.2064,2460.8,2460.5,0.00609372]
[1725203630339,4.35795968,2460.7,2460.5,0.00609372]
[1725203630524,3.20642,2460.6,2460.5,0.00609372]
[1725203630725,3.56042,2460.6,2460.5,0.00609372]
[1725203630929,12.02737568,2460.6,2460.5,0.00609372]
[1725203632938,11.62095568,2460.6,2460.5,0.00609372]
[1725203633139,0.19864992,2460.7,2460.5,0.00609372]
[1725203633347,0.00609372,2460.9,2460.5,0.00609372]
[1725203633635,0.00609372,2460.9,2460.6,0.40642]
[1725203633842,0.00609372,2460.9,2460.5,0.78162372]
[1725203634039,0.41246372,2460.9,2460.5,0.78162372]
[1725203635134,0.41246372,2460.9,2460.5,0.37519372]
[1725203635843,0.00609372,2460.9,2460.8,0.40639]
[1725203636043,3.2078,2461.7,2461.3,0.4063]
[1725203636236,3.41457952,2461.7,2461.1,3.2078]
[1725203636432,4.75421472,2461.6,2461.2,0.3602]
[1725203637140,4.76030844,2461.6,2461.2,0.3602]
[1725203637639,4.35404844,2461.6,2461.2,0.76652]
[1725203637838,4.35404844,2461.6,2461.2,0.3602]
[1725203638044,0.00609372,2461.6,2461.3,0.40629]
[1725203638946,0.00609372,2461.6,2461.2,0.3602]
[1725203639139,4.94367455,2461.5,2461.2,0.3602]
[1725203639941,4.53739455,2461.5,2461.2,0.3602]
[1725203640144,4.92839455,2461.5,2461.2,0.3602]
[1725203640446,0.40629,2461.4,2461.2,0.3602]
[1725203640847,8.13467455,2461.5,2461.2,0.3602]
[1725203641050,8.13466455,2461.5,2461.2,0.3602]
[1725203647055,7.72839455,2461.5,2461.2,0.3602]
[1725203647742,8.13468455,2461.5,2461.2,0.3602]
[1725203648052,7.72839455,2461.5,2460.9,3.9431]
[1725203648251,0.40637,2460.9,2460.7,4.148]
[1725203648454,0.40637,2460.9,2460.5,0.00609372]
[1725203648759,3.20642,2460.6,2460.5,0.00609372]
[1725203649246,7.27042,2460.6,2460.5,0.00609372]
[1725203649447,11.62164672,2460.6,2460.5,0.00609372]
[1725203650050,11.62164672,2460.6,2460.2,3.2078]
[1725203650051,0.40647,2460.3,2460.2,3.2078]
[1725203650254,0.20428355,2460.3,2460.2,3.2078]
[1725203650460,4.35122672,2460.6,2460.2,3.61429]
[1725203650461,4.75765672,2460.6,2460.2,3.61429]
[1725203650651,4.75765672,2460.6,2460.2,3.2078]
[1725203650848,0.40643,2460.6,2460.2,3.61429]
[1725203651043,4.46523656,2460.5,2460.2,3.62038372]
[1725203651452,4.46523656,2460.5,2460.4,0.40645]
[1725203651759,4.163,2460.8,2460.3,1.15946]
[1725203651760,0.20042339,2460.7,2460.3,1.15946]
[1725203652253,0.20042339,2460.7,2460.3,0.3627]
[1725203652254,0.60682339,2460.7,2460.3,0.3627]
[1725203652663,0.20042339,2460.7,2460.4,0.40645]
[1725203652859,0.60683339,2460.7,2460.4,0.356]
[1725203653064,4.92667761,2460.6,2460.4,0.356]
[1725203654661,4.52025761,2460.6,2460.4,0.356]
[1725203654959,4.52025761,2460.6,2460.2,3.62038372]
[1725203654960,0.40647,2460.3,2460.2,3.21389372]
[1725203655255,0.61384804,2460.3,2460.2,3.21389372]
[1725203656150,0.61384804,2460.3,2460.2,0.00609372]
[1725203656357,12.16405361,2460.3,2460.2,0.00609372]
[1725203656860,13.18023361,2460.3,2460.2,0.00609372]
[1725203657162,20.75657163,2460.3,2460.2,0.00609372]
[1725203657363,0.40658,2459.7,2459.5,3.2078]
[1725203657863,3.20656,2459.8,2459.5,3.2078]
[1725203658062,1.99745145,2460.1,2459.5,7.68]
[1725203658260,0.00609372,2460.0,2459.6,0.37449372]
[1725203658448,0.41262372,2460.0,2459.6,0.37449372]
[1725203658764,0.41262372,2460.0,2459.6,0.00609372]
[1725203658765,7.34717718,2459.9,2459.6,0.00609372]
[1725203658960,0.40655,2459.8,2459.6,0.00609372]
[1725203659254,0.40656,2459.8,2459.6,0.00609372]
[1725203660248,8.10987718,2459.9,2459.6,0.00609372]
[1725203660249,8.51641718,2459.9,2459.6,0.00609372]
[1725203660454,5.31877718,2459.9,2459.6,0.00609372]
[1725203661050,5.72531718,2459.9,2459.6,0.00609372]
[1725203661558,8.52531718,2459.9,2459.6,0.00609372]
[1725203662058,0.40657,2459.8,2459.6,0.00609372]
[1725203662558,4.51715509,2459.7,2459.6,0.00609372]
[1725203663256,4.92372509,2459.7,2459.6,0.00609372]
[1725203663460,4.51715509,2459.7,2459.6,0.00609372]
[1725203667665,3.5716,2459.9,2459.6,0.00609372]
[1725203668164,4.54468217,2459.8,2459.6,0.00609372]
[1725203670760,0.40657,2459.7,2459.6,0.00609372]
[1725203671258,4.54468217,2459.8,2459.6,0.00609372]
[1725203671259,4.95124217,2459.8,2459.6,0.00609372]
[1725203671561,4.54468217,2459.8,2459.6,0.00609372]
[1725203671862,4.95124217,2459.8,2459.6,0.00609372]
[1725203673662,4.54468217,2459.8,2459.6,0.00609372]
[1725203674563,4.95124217,2459.8,2459.6,0.00609372]
[1725203675962,4.54468217,2459.8,2459.6,0.00609372]
[1725203676468,4.95123217,2459.8,2459.6,0.00609372]
[1725203676663,4.54468217,2459.8,2459.6,0.00609372]
[1725203677566,4.95124217,2459.8,2459.6,0.00609372]
[1725203678065,4.54468217,2459.8,2459.6,0.00609372]
[1725203678269,4.54468217,2459.8,2459.6,0.41267372]
[1725203678457,4.54468217,2459.8,2459.6,0.00609372]
[1725203678653,4.54468217,2459.8,2459.7,0.40657]
[1725203678963,0.00609372,2460.0,2459.8,0.40654]
[1725203679164,0.00609372,2460.0,2459.6,4.07169372]
[1725203679165,0.00609372,2460.0,2459.7,1.15846]
[1725203679969,0.41261372,2460.0,2459.7,1.15846]
[1725203680171,0.40654,2459.9,2459.7,0.7519]
[1725203680867,0.40654,2459.9,2459.6,0.41267372]
[1725203681069,0.3769,2459.8,2459.6,0.41267372]
[1725203682263,0.3769,2459.8,2459.6,0.00609372]
[1725203682771,0.78677,2459.7,2459.6,0.00609372]
[1725203687876,3.58677,2459.7,2459.6,0.00609372]
[1725203693383,5.17771145,2459.7,2459.6,0.00609372]
[1725203694388,3.58677,2459.7,2459.6,0.00609372]
[1725203695085,5.70802887,2459.7,2459.6,0.00609372]
[1725203696886,2.50145887,2459.7,2459.6,0.00609372]
[1725203697077,0.3802,2459.7,2459.6,0.00609372]
[1725203697282,1.59622638,2459.7,2459.6,7.27949372]
[1725203697484,1.59622638,2459.8,2459.7,0.40657]
[1725203697682,1.59622638,2459.8,2459.7,1.14287]
[1725203697990,1.59622638,2459.8,2459.7,5.1865]
[1725203698180,1.59622638,2459.8,2459.7,4.8251]
[1725203698383,2.12125887,2459.9,2459.7,4.8251]
[1725203698587,2.12125887,2459.9,2459.7,0.7595]
[1725203698988,1.5968557,2459.8,2459.7,0.7595]
[1725203699284,2.12125887,2459.8,2459.7,0.3749]
[1725203700387,0.40657,2459.7,2459.6,0.00609372]
[1725203700586,3.98117,2459.7,2459.6,0.00609372]
[1725203700882,6.60461531,2459.7,2459.6,0.00609372]
[1725203701681,3.42061531,2459.7,2459.6,0.00609372]
[1725203701882,3.01404531,2459.7,2459.6,0.00609372]
[1725203702777,3.03001531,2459.7,2459.6,0.00609372]
[1725203707489,4.0656,2459.6,2458.9,0.6370522]
[1725203707783,0.40675,2458.7,2458.5,4.148]
[1725203707988,0.40675,2458.7,2458.2,1.96388829]
[1725203707989,5.84098473,2458.6,2458.2,0.78061]
[1725203708186,1.59996614,2458.3,2458.2,0.78061]
[1725203708394,1.59996614,2458.4,2458.2,0.78061]
[1725203708588,0.00609372,2458.5,2458.4,0.40678]
[1725203708787,1.59996614,2458.9,2458.7,0.40672]
[1725203708994,1.59996614,2458.9,2458.8,0.3738]
[1725203709391,1.59996614,2458.9,2458.8,4.441]
[1725203709996,1.59996614,2458.9,2458.8,0.3738]
[1725203710389,2.13938191,2459.1,2458.8,0.3738]
[1725203710390,1.59996614,2459.0,2458.8,0.3738]
[1725203710786,1.59996614,2458.9,2458.8,0.3738]
[1725203710988,0.4067,2458.9,2458.7,0.3872]
[1725203711292,1.59690955,2458.8,2458.7,0.3872]
[1725203711487,2.37330955,2458.9,2458.7,0.3872]
[1725203712006,0.40675,2458.7,2458.4,0.3706]
[1725203712297,0.40675,2458.7,2458.3,3.2078]
[1725203712298,0.40677,2458.5,2458.3,3.2078]
[1725203712503,0.40677,2458.5,2458.2,1.1064]
[1725203712688,4.80367955,2458.5,2458.2,1.1064]
[1725203712887,4.78800955,2458.5,2458.2,1.51322]
[1725203713289,4.78800955,2458.5,2458.2,1.1064]
[1725203713489,3.1911,2458.5,2458.3,0.4068]
[1725203713698,0.3911,2458.5,2458.3,0.4068]
[1725203714303,1.59690955,2458.6,2458.2,1.1064]
[1725203714600,1.59690955,2458.8,2458.5,0.40675]
[1725203715296,2.00362955,2458.8,2458.5,0.40675]
[1725203715686,2.74451955,2458.9,2458.5,0.40675]
[1725203716406,2.33780955,2458.9,2458.6,0.40675]
[1725203716591,0.7409,2458.9,2458.7,0.7216]
[1725203717802,1.1476,2458.9,2458.7,0.7216]
[1725203717991,1.59690955,2459.0,2458.7,0.3668]
[1725203718191,0.00609372,2459.1,2459.0,0.40668]
[1725203718405,0.00609372,2459.1,2459.0,4.47308]
[1725203718698,0.00609372,2459.1,2459.0,10.47308]
[1725203719505,1.59690955,2459.8,2459.0,15.44546268]
[1725203719800,5.31575421,2459.9,2459.6,0.40658]
[1725203719996,5.31575421,2459.9,2459.3,7.3558]
[1725203720193,5.31575421,2459.9,2459.4,1.12]
[1725203720194,3.71884466,2459.9,2459.4,1.12]
[1725203720393,3.71884466,2459.9,2459.6,0.40657]
[1725203721008,2.8,2459.9,2459.7,0.40657]
[1725203721298,0.00609372,2460.0,2459.7,0.40657]
[1725203721606,0.00609372,2460.0,2459.5,0.00609372]
[1725203721607,0.21102492,2460.0,2459.8,0.40655]
[1725203721902,0.00609372,2460.0,2459.9,0.40654]
[1725203722406,0.00609372,2460.0,2459.9,4.47134]
[1725203723304,4.39690955,2460.6,2460.3,0.40646]
[1725203723605,1.59690955,2460.7,2460.4,0.40645]
[1725203723900,3.77452812,2460.8,2460.5,0.40643]
[1725203724107,1.59690955,2460.9,2460.5,3.2078]
[1725203724401,0.00609372,2460.9,2460.7,0.4064]
[1725203724994,0.00609372,2460.9,2460.8,0.40639]
[1725203726609,0.00609372,2460.9,2460.8,4.47039]
[1725203726807,0.00609372,2460.9,2460.8,0.40639]
[1725203726999,0.00609372,2460.9,2460.8,4.47039]
[1725203732297,0.00609372,2460.9,2460.8,4.064]
[1725203732510,2.80609372,2460.9,2460.5,3.2078]
[1725203732706,0.3581,2460.8,2460.5,3.2078]
[1725203732913,1.13459,2460.8,2460.5,3.2078]
[1725203733311,1.51939,2460.8,2460.5,3.2078]
[1725203733613,1.51939,2460.8,2460.5,3.61423]
[1725203733614,1.113,2460.8,2460.5,3.61423]
[1725203733912,1.113,2460.8,2460.5,3.2078]
[1725203734114,1.51939,2460.8,2460.5,3.2078]
[1725203735009,1.51939,2460.8,2460.4,0.40645]
[1725203735809,1.113,2460.8,2460.5,0.40644]
[1725203737515,1.113,2460.8,2460.4,0.40645]
[1725203737516,1.51939,2460.8,2460.4,0.40645]
[1725203738018,1.113,2460.8,2460.5,0.40643]
[1725203738319,1.51939,2460.8,2460.5,0.40643]
[1725203738817,1.113,2460.8,2460.5,0.40643]
[1725203739311,1.51939,2460.8,2460.5,0.40643]
[1725203739511,0.40641,2460.7,2460.3,8.77563134]
[1725203739719,1.5194,2460.8,2460.4,0.40645]
[1725203739903,1.5194,2460.8,2460.2,7.3558]
[1725203740104,1.5194,2460.8,2460.4,0.40644]
[1725203742909,0.7282,2460.8,2460.7,0.4064]
[1725203743721,0.00609372,2460.9,2460.8,0.40639]
[1725203744912,0.00609372,2460.9,2460.8,4.47039]
[1725203747223,0.00609372,2460.9,2460.8,0.40639]
[1725203747424,0.76889372,2460.9,2460.7,0.40639]
[1725203747823,0.76889372,2460.9,2460.7,5.74524823]
[1725203748127,1.17527372,2460.9,2460.5,0.3656]
[1725203748321,1.17527372,2460.9,2460.5,0.77203]
[1725203748518,0.40639,2460.8,2460.6,8.53786614]
[1725203748923,1.17527372,2460.9,2460.6,8.53786614]
[1725203749116,0.76889372,2460.9,2460.6,8.94428614]
[1725203749725,0.40641,2460.7,2460.3,3.2078]
[1725203750120,0.76889372,2460.9,2460.3,3.2078]
[1725203750313,1.17527372,2460.9,2460.3,3.2078]
[1725203750815,1.17527372,2460.9,2460.6,0.40641]
[1725203751016,0.76889372,2460.9,2460.6,0.40641]
[1725203751222,0.76889372,2460.9,2460.8,0.40639]
[1725203753834,0.38349372,2460.9,2460.8,0.40639]
[1725203754131,0.00609372,2460.9,2460.8,4.47039]
[1725203754327,0.00609372,2460.9,2460.8,15.7505821]
[1725203754524,3.2078,2461.3,2461.2,0.40632]
[1725203755219,3.2078,2461.3,2461.2,4.46952]
[1725203755428,3.2078,2461.7,2461.2,10.0632]
[1725203755627,3.21389372,2461.7,2461.4,0.40628]
[1725203757329,3.21389372,2461.7,2461.5,0.40627]
[1725203758335,3.21389372,2461.7,2461.6,0.40626]
[1725203758733,0.00609372,2461.7,2461.6,4.46866]
[1725203760024,2.80609372,2461.7,2461.4,3.2078]
[1725203760231,3.2078,2461.6,2461.2,0.00609372]
[1725203760431,0.77927,2461.5,2461.2,0.00609372]
[1725203760627,0.7413,2461.5,2461.2,0.00609372]
[1725203760835,6.0078,2461.3,2460.3,0.40646]
[1725203761029,0.40647,2460.4,2460.2,3.2078]
[1725203761232,0.40647,2460.3,2459.8,0.3902]
[1725203761545,0.76998,2460.3,2459.9,5.3741451]
[1725203761749,0.3635,2460.3,2459.9,5.3741451]
[1725203762040,0.36959372,2460.3,2459.9,0.00609372]
[1725203762548,0.36959372,2460.3,2459.9,0.41262372]
[1725203764243,0.36959372,2460.3,2459.9,0.00609372]
[1725203764446,0.77606372,2460.3,2459.9,0.00609372]
[1725203764836,0.36959372,2460.3,2459.9,0.41262372]
[1725203766749,0.36959372,2460.3,2459.9,0.00609372]
[1725203767058,0.36959372,2460.3,2460.0,5.75354465]
[1725203767253,0.36959372,2460.3,2460.1,0.4065]
[1725203767455,0.36959372,2460.3,2460.0,5.75354465]
[1725203768137,0.36959372,2460.3,2460.1,0.4065]
[1725203768340,0.36959372,2460.3,2460.0,5.34703465]
[1725203768539,0.36959372,2460.3,2460.0,5.75354465]
[1725203768849,0.36959372,2460.3,2459.9,0.00609372]
[1725203769049,0.40652,2460.0,2459.9,0.00609372]
[1725203769442,0.40659,2459.6,2459.3,0.3807]
[1725203769845,0.40659,2459.6,2459.2,7.76244]
[1725203769846,0.40659,2459.6,2459.2,7.3558]
[1725203770039,0.79908,2459.7,2459.3,0.40663]
[1725203770240,0.3925,2459.7,2459.3,0.40663]
[1725203770442,0.3925,2459.7,2459.2,7.3558]
[1725203770642,0.3925,2459.7,2459.3,0.00609372]
[1725203770643,0.40659,2459.6,2459.3,0.00609372]
[1725203770844,0.4066,2459.5,2459.3,0.00609372]
[1725203771047,0.3925,2459.7,2459.3,0.00609372]
[1725203771450,0.40661,2459.5,2459.3,0.00609372]
[1725203771845,0.40662,2459.4,2459.3,0.00609372]
[1725203772651,0.60531595,2459.4,2459.3,0.00609372]
[1725203772852,0.40662,2459.4,2459.3,0.00609372]
[1725203775057,0.60541758,2459.4,2459.3,0.00609372]
[1725203776458,4.67181758,2459.4,2459.3,0.00609372]
[1725203776848,0.40668,2459.0,2458.9,4.148]
[1725203777057,0.40668,2459.0,2458.6,3.5769]
[1725203777456,0.40668,2459.0,2458.6,3.98365]
[1725203777651,0.40668,2459.0,2458.6,3.5769]
[1725203777852,0.41277372,2459.0,2458.6,3.58299372]
[1725203778054,0.41277372,2459.0,2458.6,0.37519372]
[1725203778460,0.41277372,2459.0,2458.6,0.78193372]
[1725203779358,0.41277372,2459.0,2458.6,0.37519372]
[1725203779952,0.00609372,2459.0,2458.6,0.00609372]
[1725203780160,0.3809,2458.9,2458.6,0.00609372]
[1725203780657,0.78761,2458.9,2458.6,0.00609372]
[1725203781257,0.3809,2458.9,2458.6,0.00609372]
[1725203781450,0.78761,2458.9,2458.6,0.00609372]
[1725203781654,0.40672,2458.8,2458.6,0.00609372]
[1725203782075,0.3809,2458.9,2458.6,0.00609372]
[1725203782076,0.78761,2458.9,2458.6,0.00609372]
[1725203782268,0.40672,2458.8,2458.6,0.00609372]
[1725203782959,0.40673,2458.7,2458.6,0.00609372]
[1725203783160,0.77233,2458.7,2458.6,0.00609372]
[1725203785764,0.3656,2458.7,2458.6,0.00609372]
[1725203786852,0.77233,2458.7,2458.6,0.00609372]
[1725203787465,0.3656,2458.7,2458.6,0.00609372]
[1725203787767,0.40673,2458.8,2458.6,0.00609372]
[1725203788268,0.40673,2458.7,2458.6,0.00609372]
[1725203788661,4.47393,2458.7,2458.6,0.00609372]
[1725203788965,8.77316908,2458.7,2458.6,0.00609372]
[1725203789164,9.79000908,2458.7,2458.6,0.00609372]
[1725203789370,15.79000908,2458.7,2458.6,0.00609372]
[1725203790061,9.79000908,2458.7,2458.6,0.00609372]
[1725203790860,8.77316908,2458.7,2458.6,0.00609372]
[1725203794369,0.40673,2458.7,2458.6,0.00609372]
[1725203794671,3.20673,2458.8,2458.6,0.00609372]
[1725203795073,0.40673,2458.7,2458.6,0.00609372]
[1725203797270,3.5887,2458.9,2458.6,0.00609372]
[1725203797476,3.99541,2458.9,2458.6,0.00609372]
[1725203798065,3.99541,2458.9,2458.6,0.41284372]
[1725203798470,3.5887,2458.9,2458.6,0.41284372]
[1725203799573,3.9954,2458.9,2458.6,0.41284372]
[1725203799870,0.00609372,2459.0,2458.7,4.0672]
[1725203800074,0.00609372,2459.0,2458.9,0.4067]
[1725203800469,0.00609372,2459.0,2458.9,4.8558]
[1725203803270,0.00609372,2459.0,2458.9,0.7894]
[1725203803574,0.00609372,2459.0,2458.9,4.8558]
[1725203804075,0.00609372,2459.0,2458.9,10.2385209]
[1725203804276,0.00609372,2459.0,2458.9,19.4463209]